fUSD/lending_fUSD_20240429
["ID","MTS","AMOUNT","RATE_DAILY","PERIOD"]
[324848511,1714371090724,-215.33,0.00012876,2]
[324848512,1714371090734,-414.76,0.00012876,2]
[324848513,1714371090744,-632.5073951,0.00012876,2]
[324848514,1714371090752,-500.0,0.00012876,2]
[324848515,1714371090762,-500.0,0.00012876,2]
[324848516,1714371090772,-728.48,0.00012876,2]
[324848517,1714371090782,-500.0,0.00012876,2]
[324848518,1714371090792,-500.0,0.00012876,2]
[324848519,1714371090801,-556.12,0.00012876,2]
[324848520,1714371090811,-616.26,0.00012876,2]
[324848521,1714371090820,-1867.75,0.00012876,2]
[324848522,1714371090829,-500.0,0.00012876,2]
[324848523,1714371090838,-150.0,0.00012876,2]
[324848524,1714371090847,-500.0,0.00012876,2]
[324848525,1714371090857,-629.61,0.00012876,2]
[324848526,1714371090866,-204.87380471,0.00012876,2]
[324848527,1714371090875,-840.69,0.00012876,2]
[324848528,1714371090884,-519.84,0.00012876,2]
[324848529,1714371090893,-500.0,0.00012876,2]
[324848530,1714371090903,-222.57,0.00012876,2]
[324848531,1714371090912,-571.29,0.00012876,2]
[324848532,1714371090922,-500.0,0.00012876,2]
[324848533,1714371090931,-320.19,0.00012876,2]
[324848534,1714371090940,-500.0,0.00012876,2]
[324848535,1714371090950,-500.0,0.00012876,2]
[324848536,1714371090959,-500.0,0.00012876,2]
[324848537,1714371090969,-500.0,0.00012876,2]
[324848538,1714371090978,-500.0,0.00012876,2]
[324848539,1714371090988,-500.0,0.00012876,2]
[324848540,1714371090997,-173.66,0.00012876,2]
[324848541,1714371091006,-151.0,0.00012876,2]
[324848542,1714371091015,-500.0,0.00012876,2]
[324848543,1714371091025,-500.0,0.00012876,2]
[324848544,1714371091034,-641.21,0.00012876,2]
[324848545,1714371091044,-500.0,0.00012876,2]
[324848546,1714371091053,-1718.9,0.00012876,2]
[324848547,1714371091062,-500.0,0.00012876,2]
[324848548,1714371091071,-500.0,0.00012876,2]
[324848549,1714371091081,-756.51,0.00012876,2]
[324848550,1714371091090,-500.0,0.00012876,2]
[324848551,1714371091100,-223.7165122,0.00012876,2]
[324848552,1714371091109,-744.31,0.00012876,2]
[324848553,1714371091119,-394.73,0.00012876,2]
[324848554,1714371091283,-500.0,0.00012876,2]
[324848555,1714371091293,-2861.36,0.00012876,2]
[324848556,1714371091304,-817.41,0.00012876,2]
[324848557,1714371091313,-500.0,0.00012876,2]
[324848558,1714371091323,-500.0,0.00012876,2]
[324848559,1714371091332,-500.0,0.00012876,2]
[324848560,1714371091342,-500.0,0.00012876,2]
[324848561,1714371091352,-1487.12,0.00012876,2]
[324848562,1714371091361,-500.0,0.00012876,2]
[324848563,1714371091371,-500.0,0.00012876,2]
[324848564,1714371091381,-333.92,0.00012876,2]
[324848565,1714371091390,-500.0,0.00012876,2]
[324848566,1714371091399,-500.0,0.00012876,2]
[324848567,1714371091409,-500.0,0.00012876,2]
[324848568,1714371091418,-500.0,0.00012876,2]
[324848569,1714371091427,-500.0,0.00012876,2]
[324848570,1714371091437,-4424.23,0.00012876,2]
[324848571,1714371091446,-500.0,0.00012876,2]
[324848572,1714371091455,-285.10861833,0.00012876,2]
[324848573,1714371091464,-500.0,0.00012876,2]
[324848574,1714371091474,-500.0,0.00012876,2]
[324848575,1714371091484,-500.0,0.00012876,2]
[324848576,1714371091493,-1134.69,0.00012876,2]
[324848577,1714371091503,-658.49,0.00012876,2]
[324848578,1714371091512,-500.0,0.00012876,2]
[324848579,1714371091523,-500.0,0.00012876,2]
[324848580,1714371091535,-500.0,0.00012876,2]
[324848581,1714371091544,-150.0,0.00012876,2]
[324848582,1714371091553,-500.0,0.00012876,2]
[324848583,1714371091562,-500.0,0.00012876,2]
[324848584,1714371091574,-500.0,0.00012876,2]
[324848585,1714371091583,-500.0,0.00012876,2]
[324848586,1714371091593,-500.0,0.00012876,2]
[324848587,1714371091603,-500.0,0.00012876,2]
[324848588,1714371091612,-516.92,0.00012876,2]
[324848589,1714371091621,-691.55,0.00012876,2]
[324848590,1714371091632,-699.22,0.00012876,2]
[324848591,1714371091641,-573.92,0.00012876,2]
[324848592,1714371091650,-1012.47,0.00012876,2]
[324848593,1714371091659,-500.0,0.00012876,2]
[324848594,1714371091668,-792.24,0.00012876,2]
[324848595,1714371091677,-197.85679,0.00012876,2]
[324848596,1714371091687,-1418.19,0.00012876,2]
[324848597,1714371091696,-575.7,0.00012876,2]
[324848598,1714371091706,-577.75,0.00012876,2]
[324848599,1714371091715,-500.0,0.00012876,2]
[324848600,1714371091724,-500.0,0.00012876,2]
[324848601,1714371091734,-514.72,0.00012876,2]
[324848602,1714371091743,-500.0,0.00012876,2]
[324848603,1714371091752,-510.34,0.00012876,2]
[324848604,1714371091760,-211.137646,0.00012876,2]
[324848605,1714371091770,-1298.47,0.00012876,2]
[324848606,1714371091779,-500.0,0.00012876,2]
[324848607,1714371091788,-500.0,0.00012876,2]
[324848608,1714371091798,-307.39,0.00012876,2]
[324848609,1714371091807,-211.137646,0.00012876,2]
[324848610,1714371091816,-500.0,0.00012876,2]
[324848611,1714371091826,-194.340596,0.00012876,2]
[324848612,1714371091835,-151.0,0.00012876,2]
[324848613,1714371091844,-500.0,0.00012876,2]
[324848614,1714371091853,-500.0,0.00012876,2]
[324848615,1714371091862,-500.0,0.00012876,2]
[324848616,1714371091872,-233.251933,0.00012876,2]
[324848617,1714371091880,-500.0,0.00012876,2]
[324848618,1714371091889,-615.5,0.00012876,2]
[324848619,1714371091899,-233.251933,0.00012876,2]
[324848620,1714371091908,-500.0,0.00012876,2]
[324848621,1714371091917,-151.0,0.00012876,2]
[324848622,1714371091927,-500.0,0.00012876,2]
[324848623,1714371091936,-642.72,0.00012876,2]
[324848624,1714371091945,-500.0,0.00012876,2]
[324848625,1714371091955,-1601.85,0.00012876,2]
[324848626,1714371091964,-500.0,0.00012876,2]
[324848627,1714371091973,-1690.59,0.00012876,2]
[324848628,1714371091983,-250.433996,0.00012876,2]
[324848629,1714371091992,-500.0,0.00012876,2]
[324848630,1714371092001,-587.34321999,0.00012876,2]
[324848631,1714371092011,-545.00090208,0.00012876,2]
[324848632,1714371092020,-863.9,0.00012876,2]
[324848633,1714371092029,-500.0,0.00012876,2]
[324848634,1714371092039,-500.0,0.00012876,2]
[324848635,1714371092048,-500.0,0.00012876,2]
[324848636,1714371092057,-11360.7,0.00012876,2]
[324848637,1714371092066,-500.0,0.00012876,2]
[324848638,1714371092076,-1127.78,0.00012876,2]
[324848639,1714371092085,-367.7,0.00012876,2]
[324848640,1714371092095,-500.0,0.00012876,2]
[324848641,1714371092104,-500.0,0.00012876,2]
[324848642,1714371092114,-170.251858,0.00012876,2]
[324848643,1714371092124,-500.0,0.00012876,2]
[324848644,1714371092134,-1456.63,0.00012876,2]
[324848645,1714371092143,-363.28,0.00012876,2]
[324848646,1714371092152,-4753.02,0.00012876,2]
[324848647,1714371092162,-913.05,0.00012876,2]
[324848648,1714371092171,-500.0,0.00012876,2]
[324848649,1714371092180,-1411.2,0.00012876,2]
[324848650,1714371092190,-1902.6,0.00012876,2]
[324848651,1714371092200,-1350.66,0.00012876,2]
[324848652,1714371092210,-1028.48,0.00012876,2]
[324848653,1714371092219,-507.64,0.00012876,2]
[324848654,1714371092228,-500.0,0.00012876,2]
[324848655,1714371092238,-2440.89,0.00012876,2]
[324848656,1714371092248,-984.03,0.00012876,2]
[324848657,1714371092257,-598.03,0.00012876,2]
[324848658,1714371092266,-500.0,0.00012876,2]
[324848659,1714371092277,-500.0,0.00012876,2]
[324848660,1714371092286,-500.0,0.00012876,2]
[324848661,1714371092295,-1503.92,0.00012876,2]
[324848662,1714371092304,-568.28,0.00012876,2]
[324848663,1714371092314,-500.0,0.00012876,2]
[324848664,1714371092324,-151.0,0.00012876,2]
[324848665,1714371092333,-896.44,0.00012876,2]
[324848666,1714371092343,-797.46,0.00012876,2]
[324848667,1714371092352,-500.0,0.00012876,2]
[324848668,1714371092362,-745.77,0.00012876,2]
[324848669,1714371092371,-8025.3,0.00012876,2]
[324848670,1714371092381,-500.0,0.00012876,2]
[324848671,1714371092390,-8601.13,0.00012876,2]
[324848672,1714371092399,-420.81169094,0.00012876,2]
[324848673,1714371092409,-500.0,0.00012876,2]
[324848674,1714371092419,-717.05,0.00012876,2]
[324848675,1714371092428,-500.0,0.00012876,2]
[324848676,1714371092438,-525.0,0.00012877,2]
[324848677,1714371092447,-150.0,0.00012879,2]
[324848678,1714371092457,-150.0,0.00012879,2]
[324848679,1714371092466,-1500.0,0.0001288,2]
[324848680,1714371092476,-279.18272762,0.00012881,2]
[324848681,1714371092486,-150.0,0.00012882,2]
[324848682,1714371092495,-150.0,0.00012886,2]
[324848683,1714371092504,-500.0,0.00012886,2]
[324848684,1714371092513,-1500.0,0.0001289,2]
[324848685,1714371092529,-1000.0,0.00012891,2]
[324848686,1714371092538,-500.0,0.00012891,2]
[324848687,1714371092546,-1500.0,0.00012893,2]
[324848688,1714371092555,-500.0,0.00012895,2]
[324848689,1714371092566,-1500.0,0.00012895,2]
[324848690,1714371092575,-150.0,0.00012899,2]
[324848691,1714371092584,-860.95043983,0.000129,2]
[324848692,1714371092594,-1000.0,0.000129,2]
[324848693,1714371092603,-2848.61785682,0.000129,2]
[324848694,1714371092614,-150.0,0.00012901,2]
[324848695,1714371092623,-150.0,0.00012902,2]
[324848696,1714371092632,-150.0,0.00012902,2]
[324848697,1714371092641,-150.0,0.00012906,2]
[324848698,1714371092650,-301.3390537,0.00012907,2]
[324848699,1714371092659,-150.0,0.00012907,2]
[324848700,1714371092668,-150.0,0.00012908,2]
[324848701,1714371092678,-150.0,0.00012909,2]
[324848702,1714371092687,-1500.0,0.00012911,2]
[324848703,1714371092696,-150.0,0.00012912,2]
[324848704,1714371092705,-150.0,0.00012912,2]
[324848705,1714371092715,-150.0,0.00012916,2]
[324848706,1714371092724,-150.0,0.00012926,2]
[324848707,1714371092733,-150.0,0.00012927,2]
[324848708,1714371092742,-150.0,0.00012928,2]
[324848709,1714371092751,-150.0,0.00012928,2]
[324848710,1714371092760,-300.0,0.00012929,2]
[324848711,1714371092771,-1500.0,0.00012929,2]
[324848712,1714371092780,-150.0,0.00012936,2]
[324848713,1714371092789,-150.0,0.00012947,2]
[324848714,1714371092799,-1092.33900088,0.00012948,2]
[324848715,1714371092809,-150.0,0.00012949,2]
[324848716,1714371092818,-150.0,0.00012949,2]
[324848717,1714371092827,-150.0,0.00012951,2]
[324848718,1714371092837,-1500.0,0.00012952,2]
[324848719,1714371092848,-302.34340948,0.00012954,2]
[324848720,1714371092858,-150.0,0.00012955,2]
[324848721,1714371092867,-1500.0,0.00012957,2]
[324848722,1714371092878,-150.0,0.00012964,2]
[324848723,1714371092887,-500.0,0.00012972,2]
[324848724,1714371092896,-1500.0,0.00012974,2]
[324848725,1714371092906,-150.0,0.00012976,2]
[324848726,1714371092915,-647.128397,0.00012981,2]
[324848727,1714371092924,-441.9450015,0.00012981,2]
[324848728,1714371092933,-236.7616059,0.00012981,2]
[324848729,1714371092943,-865.0406623,0.00012981,2]
[324848730,1714371092952,-463.4251224,0.00012981,2]
[324848731,1714371092962,-613.9350526,0.00012981,2]
[324848732,1714371092971,-419.2761884,0.00012981,2]
[324848733,1714371092979,-224.6173242,0.00012981,2]
[324848734,1714371092989,-1668.2717421,0.00012982,2]
[324848735,1714371092998,-1266.6562022,0.00012982,2]
[324848736,1714371093007,-808.5939167,0.00012982,2]
[324848737,1714371093016,-23472.17632706,0.00012987,2]
[324848738,1714371093026,-275.0389,0.00012987,2]
[324848739,1714371093035,-548.29321941,0.00012988,2]
[324848740,1714371093045,-1500.0,0.00012988,2]
[324848741,1714371093054,-150.0,0.00012988,2]
[324848742,1714371093063,-1500.0,0.00012989,2]
[324848743,1714371093072,-1262.6785837,0.0001299,2]
[324848744,1714371093082,-1057.4951881,0.0001299,2]
[324848745,1714371093091,-852.3117926,0.0001299,2]
[324848746,1714371093100,-335.72157004,0.0001299,2]
[324848747,1714371093109,-2471.502822,0.0001299,2]
[324848748,1714371093118,-2069.887282,0.0001299,2]
[324848749,1714371093128,-1197.9116451,0.0001299,2]
[324848750,1714371093137,-1003.2527809,0.0001299,2]
[324848751,1714371093147,-1176.25730843,0.00012999,2]
[324848752,1714371093156,-500.0,0.00012999,2]
[324848753,1714371093166,-500.0,0.00012999,2]
[324848754,1714371093175,-500.0,0.00012999,2]
[324848755,1714371093184,-500.0,0.00012999,2]
[324848756,1714371093194,-568.01168167,0.00012999,2]
[324848757,1714371093203,-36678.29978342,0.00013,2]
[324848758,1714371093311,-583.20327745,0.00013,2]
[324848759,1714371093327,-1229.7413409,0.00013,2]
[324848760,1714371093339,-3031.08389438,0.00013,2]
[324848761,1714371093350,-2475.66949071,0.00013,2]
[324848762,1714371093362,-275.96458678,0.00013,2]
[324848763,1714371093374,-568.59559293,0.00013,2]
[324848764,1714371093393,-328.92787868,0.00013,2]
[324848765,1714371093405,-3499.8,0.00013,2]
[324848766,1714371093417,-362.26956143,0.00013,2]
[324848767,1714371093758,-803.7995,9.67e-05,2]
[324848768,1714371093845,-1024.1605,9.67e-05,2]
[324848769,1714371093854,-500.0,0.00010958,2]
[324848770,1714371093864,-500.0,0.00010958,2]
[324848771,1714371093873,-500.0,0.00010958,2]
[324848772,1714371093882,-500.0,0.00010958,2]
[324848773,1714371093891,-500.0,0.00010958,2]
[324848774,1714371093900,-151.0,0.00010959,2]
[324848775,1714371093909,-500.0,0.00011232,2]
[324848776,1714371093919,-151.0,0.00011232,2]
[324848777,1714371093928,-500.0,0.00011232,2]
[324848778,1714371093937,-500.0,0.00011232,2]
[324848779,1714371093946,-151.0,0.00011232,2]
[324848780,1714371093955,-500.0,0.00011506,2]
[324848781,1714371093964,-500.0,0.0001178,2]
[324848782,1714371093973,-156.93949999,0.00012054,2]
[324848783,1714371093992,-343.06050001,0.00012054,2]
[324848784,1714371094001,-500.0,0.00012328,2]
[324848785,1714371094010,-500.0,0.00012602,2]
[324848786,1714371094019,-500.0,0.00012876,2]
[324848787,1714371094029,-85.07699999,0.00013,2]
[324848788,1714371094058,-5612.89428964,0.00013,2]
[324848789,1714371094096,-150.99,9.67e-05,2]
[324848790,1714371094105,-417.38329392,0.00013,2]
[324848791,1714371094116,-8165.80375038,0.00013,2]
[324848792,1714371094508,-172.69011073,0.00010958,2]
[324848793,1714371094519,-523.29080647,0.00010958,2]
[324848794,1714371094531,-151.0,0.00011506,2]
[324848795,1714371094540,-33.23103603,0.0001178,2]
[324848796,1714371094551,-117.76896397,0.0001178,2]
[324848797,1714371094560,-151.0,0.00012054,2]
[324848798,1714371094570,-151.0,0.00012328,2]
[324848799,1714371094579,-185.110416,0.000127,2]
[324848800,1714371094587,-262.23932692,0.00013,2]
[324848801,1714371094599,-8546.07201388,0.00013,2]
[324848802,1714371094611,-12486.5232,0.00013,2]
[324848803,1714371094632,-24114.26977452,0.00013,2]
[324848804,1714371094832,-2450.9403,0.000107,2]
[324848805,1714371095083,-2351.75788212,0.000107,2]
[324848806,1714371095093,-500.0,0.00010958,2]
[324848807,1714371095104,-500.0,0.00010958,2]
[324848808,1714371095114,-500.0,0.00010958,2]
[324848809,1714371095123,-500.0,0.00010958,2]
[324848810,1714371095132,-500.0,0.00010958,2]
[324848811,1714371095142,-500.0,0.00010958,2]
[324848812,1714371095151,-500.0,0.00010958,2]
[324848813,1714371095161,-500.94664219,0.00010958,2]
[324848814,1714371095170,-500.0,0.00010958,2]
[324848815,1714371095179,-163.68378107,0.00011232,2]
[324848816,1714371095191,-415.22621893,0.00011232,2]
[324848817,1714371095201,-254.87,0.00011232,2]
[324848818,1714371095210,-25942.40958504,0.00013,2]
[324848819,1714371095221,-255.637,0.00013,2]
[324848820,1714371095233,-2228.00726279,0.00013,2]
[324848821,1714371095253,-500.0,0.00010958,2]
[324848822,1714371095263,-1960.98823099,0.00013,2]
[324848823,1714371095273,-453.32000598,0.00013,2]
[324848840,1714372233375,-155.0,8.216e-05,2]
[324848841,1714372233384,-407.19761892,8.217e-05,2]
[324848842,1714372233394,-668.34,8.219e-05,2]
[324848843,1714372233403,-208.91,9.918e-05,2]
[324848844,1714372233412,-11.74588106,9.927e-05,2]
[324848845,1714372233424,-145.94411894,9.927e-05,2]
[324848846,1714372233434,-824.13,9.977e-05,2]
[324848847,1714372233449,-160.6351565,0.00010003,2]
[324848848,1714372233459,-250.0,0.00010097,2]
[324848849,1714372233469,-200.0,0.00010103,2]
[324848850,1714372233478,-160.18,0.00010145,2]
[324848851,1714372233488,-389.37,0.00010156,2]
[324848852,1714372233497,-2353.95,0.00010156,2]
[324848853,1714372233507,-150.0,0.00010196,2]
[324848854,1714372233517,-23900.0,0.00010197,2]
[324848855,1714372233526,-368.44,0.00010242,2]
[324848856,1714372233536,-668.34,0.00010468,2]
[324848857,1714372233546,-160.63515648,0.00010568,2]
[324848858,1714372233555,-819.37,0.00010657,2]
[324848859,1714372233565,-12786.9958,0.0001085,2]
[324848860,1714372233575,-427.16037611,0.00010951,2]
[324848861,1714372233585,-414.45622206,0.00010956,2]
[324848862,1714372233595,-189.84945054,0.00010956,2]
[324848863,1714372233604,-4317.71554974,0.00010957,2]
[324848864,1714372233614,-317.01746459,0.00010957,2]
[324848865,1714372233624,-500.0,0.00010958,2]
[324848866,1714372233633,-501.00525797,0.00010958,2]
[324848867,1714372233643,-500.0,0.00010958,2]
[324848868,1714372233652,-500.8083342,0.00010958,2]
[324848869,1714372233661,-500.0,0.00010958,2]
[324848870,1714372233670,-500.0,0.00010958,2]
[324848871,1714372233680,-509.39122124,0.00010958,2]
[324848872,1714372233692,-500.0,0.00010958,2]
[324848873,1714372233702,-507.81731301,0.00010958,2]
[324848874,1714372233711,-500.0,0.00010958,2]
[324848875,1714372233720,-500.60292117,0.00010958,2]
[324848876,1714372233729,-287.98513222,0.00010958,2]
[324848877,1714372233738,-501.34719657,0.00010958,2]
[324848878,1714372233747,-501.71684653,0.00010958,2]
[324848879,1714372233757,-502.23099516,0.00010958,2]
[324848880,1714372233768,-500.0,0.00010958,2]
[324848881,1714372233777,-501.97918491,0.00010958,2]
[324848882,1714372233787,-502.85935838,0.00010958,2]
[324848883,1714372233797,-501.56640998,0.00010958,2]
[324848884,1714372233807,-500.33691369,0.00010958,2]
[324848885,1714372233816,-500.0,0.00010958,2]
[324848886,1714372233826,-223.73295734,0.00010958,2]
[324848887,1714372233836,-501.5928049,0.00010958,2]
[324848888,1714372233845,-503.39039112,0.00010958,2]
[324848890,1714372233857,-500.0,0.00010958,2]
[324848892,1714372233867,-517.69264602,0.00010958,2]
[324848894,1714372233876,-625.47,0.00010958,2]
[324848896,1714372233886,-349.03623696,0.00010958,2]
[324848898,1714372233896,-500.0,0.00010958,2]
[324848900,1714372233905,-500.0,0.00010958,2]
[324848902,1714372233915,-546.36,0.00010958,2]
[324848904,1714372233924,-500.0,0.00010958,2]
[324848906,1714372233936,-500.0,0.00010958,2]
[324848908,1714372233948,-573.3270777,0.00010958,2]
[324848910,1714372233958,-1400.81,0.00010958,2]
[324848912,1714372233968,-500.0,0.00010958,2]
[324848914,1714372233978,-500.0,0.00010958,2]
[324848916,1714372233987,-492.0,0.00010958,2]
[324848918,1714372233996,-500.7320152,0.00010958,2]
[324848920,1714372234005,-500.0,0.00010958,2]
[324848922,1714372234015,-500.0,0.00010958,2]
[324848924,1714372234024,-631.94,0.00010958,2]
[324848926,1714372234033,-500.0,0.00010958,2]
[324848929,1714372234043,-630.52,0.00010958,2]
[324848931,1714372234052,-500.98055284,0.00010958,2]
[324848933,1714372234061,-642.66,0.00010958,2]
[324848935,1714372234071,-500.85632326,0.00010958,2]
[324848937,1714372234080,-490.54,0.00010958,2]
[324848939,1714372234089,-500.0,0.00010958,2]
[324848941,1714372234099,-523.04611598,0.00010958,2]
[324848943,1714372234108,-500.0,0.00010958,2]
[324848945,1714372234118,-1491.66,0.00010958,2]
[324848947,1714372234128,-553.23828401,0.00010958,2]
[324848949,1714372234137,-500.0,0.00010958,2]
[324848951,1714372234146,-502.20272066,0.00010958,2]
[324848953,1714372234155,-500.0,0.00010958,2]
[324848955,1714372234165,-500.0,0.00010958,2]
[324848957,1714372234174,-500.0,0.00010958,2]
[324848959,1714372234183,-501.3469974,0.00010958,2]
[324848961,1714372234195,-500.0,0.00010958,2]
[324848963,1714372234205,-500.0,0.00010958,2]
[324848965,1714372234214,-500.0,0.00010958,2]
[324848967,1714372234224,-500.0,0.00010958,2]
[324848968,1714372234233,-324.4,0.00010958,2]
[324848969,1714372234242,-500.0,0.00010958,2]
[324848970,1714372234252,-500.0,0.00010958,2]
[324848971,1714372234261,-500.0,0.00010958,2]
[324848972,1714372234271,-172.76,0.00010958,2]
[324848973,1714372234280,-500.0,0.00010958,2]
[324848974,1714372234290,-500.0,0.00010958,2]
[324848975,1714372234299,-500.0,0.00010958,2]
[324848976,1714372234309,-500.0,0.00010958,2]
[324848977,1714372234318,-265.33,0.00010958,2]
[324848978,1714372234328,-500.0,0.00010958,2]
[324848979,1714372234337,-501.54050127,0.00010958,2]
[324848980,1714372234347,-500.0,0.00010958,2]
[324848981,1714372234356,-501.14134485,0.00010958,2]
[324848982,1714372234366,-500.0,0.00010958,2]
[324848983,1714372234375,-500.0,0.00010958,2]
[324848984,1714372234384,-500.0,0.00010958,2]
[324848985,1714372234393,-501.72361196,0.00010958,2]
[324848986,1714372234403,-500.0,0.00010958,2]
[324848987,1714372234412,-500.0,0.00010958,2]
[324848988,1714372234422,-500.0,0.00010958,2]
[324848989,1714372234432,-500.0,0.00010958,2]
[324848990,1714372234444,-500.0,0.00010958,2]
[324848991,1714372234453,-500.0,0.00010958,2]
[324848992,1714372234463,-503.39317392,0.00010958,2]
[324848993,1714372234472,-500.0,0.00010958,2]
[324848994,1714372234482,-500.0,0.00010958,2]
[324848995,1714372234492,-500.0,0.00010958,2]
[324848996,1714372234502,-500.0,0.00010958,2]
[324848997,1714372234511,-500.0,0.00010958,2]
[324848998,1714372234521,-500.0,0.00010958,2]
[324848999,1714372234531,-500.0,0.00010958,2]
[324849000,1714372234541,-500.0,0.00010958,2]
[324849001,1714372234551,-500.0,0.00010958,2]
[324849002,1714372234560,-500.0,0.00010958,2]
[324849003,1714372234570,-500.0,0.00010958,2]
[324849004,1714372234579,-500.0,0.00010958,2]
[324849005,1714372234590,-500.0,0.00010958,2]
[324849006,1714372234599,-500.0,0.00010958,2]
[324849007,1714372234609,-251.13834485,0.00010958,2]
[324849008,1714372234618,-500.0,0.00010958,2]
[324849009,1714372234627,-500.0,0.00010958,2]
[324849010,1714372234638,-500.0,0.00010958,2]
[324849011,1714372234648,-500.0,0.00010958,2]
[324849012,1714372234658,-500.0,0.00010958,2]
[324849013,1714372234668,-500.0,0.00010958,2]
[324849014,1714372234678,-500.0,0.00010958,2]
[324849015,1714372234689,-150.0,0.00010958,2]
[324849016,1714372234704,-500.0,0.00010958,2]
[324849017,1714372234714,-522.45,0.00010958,2]
[324849018,1714372234724,-500.0,0.00010958,2]
[324849019,1714372234734,-455.62,0.00010958,2]
[324849020,1714372234744,-500.0,0.00010958,2]
[324849021,1714372234753,-500.0,0.00010958,2]
[324849022,1714372234763,-500.0,0.00010958,2]
[324849023,1714372234773,-500.0,0.00010958,2]
[324849024,1714372234783,-500.0,0.00010958,2]
[324849025,1714372234793,-500.0,0.00010958,2]
[324849026,1714372234802,-500.0,0.00010958,2]
[324849027,1714372234811,-500.0,0.00010958,2]
[324849028,1714372234820,-500.0,0.00010958,2]
[324849029,1714372234831,-500.0,0.00010958,2]
[324849030,1714372234843,-500.0,0.00010958,2]
[324849031,1714372234854,-500.0,0.00010958,2]
[324849032,1714372234864,-500.0,0.00010958,2]
[324849033,1714372234874,-500.0,0.00010958,2]
[324849034,1714372234883,-500.0,0.00010958,2]
[324849035,1714372234893,-500.0,0.00010958,2]
[324849036,1714372234902,-277.04,0.00010958,2]
[324849037,1714372234912,-304.76,0.00010958,2]
[324849038,1714372234922,-500.0,0.00010958,2]
[324849039,1714372234932,-531.59,0.00010958,2]
[324849040,1714372234944,-500.0,0.00010958,2]
[324849041,1714372234954,-500.0,0.00010958,2]
[324849042,1714372234963,-1115.34,0.00010958,2]
[324849043,1714372234972,-500.0,0.00010958,2]
[324849044,1714372234982,-500.0,0.00010958,2]
[324849045,1714372234993,-500.0,0.00010958,2]
[324849046,1714372235002,-500.0,0.00010958,2]
[324849047,1714372235012,-500.0,0.00010958,2]
[324849048,1714372235021,-3318.17,0.00010958,2]
[324849049,1714372235031,-500.0,0.00010958,2]
[324849050,1714372235041,-500.0,0.00010958,2]
[324849051,1714372235050,-500.0,0.00010958,2]
[324849052,1714372235060,-500.0,0.00010958,2]
[324849053,1714372235070,-500.0,0.00010958,2]
[324849054,1714372235080,-500.0,0.00010958,2]
[324849055,1714372235090,-500.0,0.00010958,2]
[324849056,1714372235100,-500.0,0.00010958,2]
[324849057,1714372235109,-500.0,0.00010958,2]
[324849058,1714372235118,-500.0,0.00010958,2]
[324849059,1714372235128,-500.0,0.00010958,2]
[324849060,1714372235138,-500.0,0.00010958,2]
[324849061,1714372235149,-500.0,0.00010958,2]
[324849062,1714372235158,-500.0,0.00010958,2]
[324849063,1714372235168,-500.0,0.00010958,2]
[324849064,1714372235177,-759.36,0.00010958,2]
[324849065,1714372235187,-500.0,0.00010958,2]
[324849066,1714372235200,-500.0,0.00010958,2]